[Event "Early-Titled-Tuesday-Blitz-May-07-2024"]
[Site "Chess.com"]
[Date "2024.05.07"]
[Round "3"]
[White "IndianSchoolOfSuffering"]
[Black "Chess23Wizzard"]
[Result "1-0"]
[WhiteElo "2406"]
[BlackElo "2676"]
[TimeControl "180+1"]
[EndTime "8:30:48 PDT"]
[Termination "IndianSchoolOfSuffering won by resignation"]

1. e4 {[%clk 0:03:00.9]} 1... c6 {[%clk 0:02:51.9]} 2. d4 {[%clk 0:02:59.4]}
2... d5 {[%clk 0:02:50.5]} 3. e5 {[%clk 0:02:58.5]} 3... Bf5 {[%clk 0:02:04.6]}
4. Nf3 {[%clk 0:02:56.2]} 4... e6 {[%clk 0:01:51.8]} 5. Be2 {[%clk 0:02:54.6]}
5... Nd7 {[%clk 0:01:44.2]} 6. O-O {[%clk 0:02:52.9]} 6... h6 {[%clk 0:01:44.2]}
7. c3 {[%clk 0:02:52.7]} 7... Ne7 {[%clk 0:01:43.4]} 8. Na3 {[%clk 0:02:51.8]}
8... Bg6 {[%clk 0:01:43.3]} 9. Nc2 {[%clk 0:02:43.9]} 9... Nf5 {[%clk
0:01:43.6]} 10. Ne3 {[%clk 0:02:42.9]} 10... Be7 {[%clk 0:01:43.7]} 11. Nxf5
{[%clk 0:02:42.4]} 11... Bxf5 {[%clk 0:01:44.6]} 12. Bd3 {[%clk 0:02:41.3]}
12... Bxd3 {[%clk 0:01:44.6]} 13. Qxd3 {[%clk 0:02:42.2]} 13... c5 {[%clk
0:01:40.5]} 14. Be3 {[%clk 0:02:40]} 14... O-O {[%clk 0:01:39.5]} 15. g3 {[%clk
0:02:33.1]} 15... Rc8 {[%clk 0:01:38.6]} 16. h4 {[%clk 0:02:31.2]} 16... Qb6
{[%clk 0:01:36.3]} 17. Qd2 {[%clk 0:02:29.6]} 17... cxd4 {[%clk 0:01:34.9]} 18.
cxd4 {[%clk 0:02:21.5]} 18... Bb4 {[%clk 0:01:32]} 19. Qe2 {[%clk 0:02:20.7]}
19... Rc6 {[%clk 0:01:17.7]} 20. Rac1 {[%clk 0:02:13.3]} 20... Rfc8 {[%clk
0:01:17.3]} 21. Rxc6 {[%clk 0:02:06.3]} 21... Rxc6 {[%clk 0:01:18.2]} 22. Nh2
{[%clk 0:02:05.8]} 22... Be7 {[%clk 0:01:16.1]} 23. Ng4 {[%clk 0:01:52.3]} 23...
Kf8 {[%clk 0:01:07.8]} 24. Qf3 {[%clk 0:01:49.9]} 24... Qxb2 {[%clk 0:00:37.2]}
25. h5 {[%clk 0:01:35.9]} 25... Ke8 {[%clk 0:00:36.2]} 26. Bxh6 {[%clk
0:01:32.1]} 26... gxh6 {[%clk 0:00:35.9]} 27. Nxh6 {[%clk 0:01:31.9]} 27... f5
{[%clk 0:00:34]} 28. exf6 {[%clk 0:01:29.7]} 28... Nxf6 {[%clk 0:00:34]} 29. Ng4
{[%clk 0:01:26.6]} 29... Qxd4 {[%clk 0:00:33.3]} 30. Nxf6+ {[%clk 0:01:23.2]}
30... Qxf6 {[%clk 0:00:34.2]} 31. Qb3 {[%clk 0:01:19.5]} 31... Rc3 {[%clk
0:00:22.9]} 32. Qxb7 {[%clk 0:01:17.6]} 32... Qd4 {[%clk 0:00:19]} 33. Qb8+
{[%clk 0:01:11.6]} 33... Kf7 {[%clk 0:00:18.2]} 34. h6 {[%clk 0:01:11.8]} 34...
Rxg3+ {[%clk 0:00:17.7]} 35. Qxg3 {[%clk 0:01:10.2]} 1-0

[Event "Early-Titled-Tuesday-Blitz-May-07-2024"]
[Site "Chess.com"]
[Date "2024.05.07"]
[Round "3"]
[White "Manukyan_Artak"]
[Black "pirulillo"]
[Result "0-1"]
[WhiteElo "2530"]
[BlackElo "2380"]
[TimeControl "180+1"]
[EndTime "8:30:53 PDT"]
[Termination "pirulillo won by checkmate"]

1. e4 {[%clk 0:03:00.5]} 1... c5 {[%clk 0:02:58.3]} 2. Nf3 {[%clk 0:03:01.4]}
2... e6 {[%clk 0:02:58]} 3. c3 {[%clk 0:03:00.1]} 3... Nf6 {[%clk 0:02:55.1]} 4.
e5 {[%clk 0:02:51.7]} 4... Nd5 {[%clk 0:02:54.8]} 5. d4 {[%clk 0:02:52.6]} 5...
d6 {[%clk 0:02:54.5]} 6. Bd3 {[%clk 0:02:51.8]} 6... Bd7 {[%clk 0:02:52.1]} 7.
O-O {[%clk 0:02:51.3]} 7... Bc6 {[%clk 0:02:51.9]} 8. Bg5 {[%clk 0:02:51.1]}
8... Be7 {[%clk 0:02:49.8]} 9. Bxe7 {[%clk 0:02:44.8]} 9... Qxe7 {[%clk
0:02:48.8]} 10. Nbd2 {[%clk 0:02:41.5]} 10... cxd4 {[%clk 0:02:46.1]} 11. cxd4
{[%clk 0:02:33.1]} 11... O-O {[%clk 0:02:25.4]} 12. Ne4 {[%clk 0:02:29]} 12...
dxe5 {[%clk 0:02:22.8]} 13. dxe5 {[%clk 0:02:29.9]} 13... h6 {[%clk 0:02:21.1]}
14. Rc1 {[%clk 0:02:17.1]} 14... Nf4 {[%clk 0:02:09.1]} 15. Bb1 {[%clk
0:02:14.7]} 15... Nd7 {[%clk 0:01:44.5]} 16. Qc2 {[%clk 0:02:10.1]} 16... g6
{[%clk 0:01:44.5]} 17. g3 {[%clk 0:01:58.9]} 17... Nh3+ {[%clk 0:01:39.6]} 18.
Kg2 {[%clk 0:01:57]} 18... Ng5 {[%clk 0:01:38.7]} 19. Nfxg5 {[%clk 0:01:46]}
19... hxg5 {[%clk 0:01:39.6]} 20. f3 {[%clk 0:01:17.8]} 20... Nxe5 {[%clk
0:01:37.2]} 21. Qd2 {[%clk 0:01:16.9]} 21... Bxe4 {[%clk 0:01:34.1]} 22. Bxe4
{[%clk 0:01:16.1]} 22... Rfd8 {[%clk 0:01:31.9]} 23. Qe3 {[%clk 0:01:13.1]}
23... Qb4 {[%clk 0:01:27.9]} 24. Qxg5 {[%clk 0:01:00]} 24... Rd2+ {[%clk
0:01:21.9]} 25. Kh1 {[%clk 0:00:42.1]} 25... Qxb2 {[%clk 0:01:20.4]} 26. Qh6
{[%clk 0:00:37.1]} 26... Rad8 {[%clk 0:01:11.6]} 27. Rc5 {[%clk 0:00:15.7]}
27... Rd1 {[%clk 0:01:04]} 28. Kg1 {[%clk 0:00:07.7]} 28... Rxf1+ {[%clk
0:00:55.8]} 29. Kxf1 {[%clk 0:00:08.6]} 29... Rd1# {[%clk 0:00:54.8]} 0-1

[Event "Early-Titled-Tuesday-Blitz-May-07-2024"]
[Site "Chess.com"]
[Date "2024.05.07"]
[Round "3"]
[White "ScofieldMichael01"]
[Black "DarZay"]
[Result "1-0"]
[WhiteElo "2572"]
[BlackElo "2330"]
[TimeControl "180+1"]
[EndTime "8:30:55 PDT"]
[Termination "ScofieldMichael01 won by resignation"]

1. Nf3 {[%clk 0:03:00.9]} 1... Nf6 {[%clk 0:02:58.2]} 2. g3 {[%clk 0:03:00.9]}
2... d5 {[%clk 0:02:57.9]} 3. Bg2 {[%clk 0:03:00.5]} 3... e6 {[%clk 0:02:58.6]}
4. O-O {[%clk 0:03:00.8]} 4... Be7 {[%clk 0:02:59.2]} 5. c4 {[%clk 0:03:01.4]}
5... c5 {[%clk 0:02:58.5]} 6. b3 {[%clk 0:03:01.4]} 6... dxc4 {[%clk 0:02:58.9]}
7. bxc4 {[%clk 0:03:01.4]} 7... Nc6 {[%clk 0:02:59.6]} 8. Bb2 {[%clk 0:03:01.6]}
8... O-O {[%clk 0:02:59.5]} 9. d3 {[%clk 0:02:58.9]} 9... Qc7 {[%clk 0:02:57.8]}
10. Nbd2 {[%clk 0:02:57.2]} 10... e5 {[%clk 0:02:56.9]} 11. Rb1 {[%clk
0:02:51.2]} 11... Nd4 {[%clk 0:02:56.2]} 12. e3 {[%clk 0:02:44.6]} 12... Nxf3+
{[%clk 0:02:54.7]} 13. Nxf3 {[%clk 0:02:42.9]} 13... Bg4 {[%clk 0:02:53.8]} 14.
h3 {[%clk 0:02:42]} 14... Bxf3 {[%clk 0:02:52.8]} 15. Qxf3 {[%clk 0:02:42.9]}
15... b6 {[%clk 0:02:50.4]} 16. Qf5 {[%clk 0:02:40.9]} 16... Rad8 {[%clk
0:02:47.4]} 17. Bxe5 {[%clk 0:02:40.2]} 17... Qd7 {[%clk 0:02:44.9]} 18. Qxd7
{[%clk 0:02:36.3]} 18... Rxd7 {[%clk 0:02:45.2]} 19. Rfd1 {[%clk 0:02:33.6]}
19... Rfd8 {[%clk 0:02:44.3]} 20. d4 {[%clk 0:02:25.5]} 20... Rc8 {[%clk
0:02:28.5]} 21. d5 {[%clk 0:02:18.6]} 21... Ne8 {[%clk 0:02:28]} 22. h4 {[%clk
0:02:04.5]} 22... f5 {[%clk 0:02:25.7]} 23. Bh3 {[%clk 0:02:01.5]} 23... g6
{[%clk 0:02:24.4]} 24. e4 {[%clk 0:01:58.5]} 24... Nd6 {[%clk 0:02:22.8]} 25.
exf5 {[%clk 0:01:55.4]} 25... Nxf5 {[%clk 0:02:21.8]} 26. Re1 {[%clk 0:01:45.1]}
26... Kf7 {[%clk 0:02:16.2]} 27. Bc3 {[%clk 0:01:36.4]} 27... Rd6 {[%clk
0:02:10.8]} 28. Bxf5 {[%clk 0:01:27.8]} 28... gxf5 {[%clk 0:02:10.3]} 29. Re5
{[%clk 0:01:28.7]} 29... Rf6 {[%clk 0:02:01.6]} 30. Rbe1 {[%clk 0:01:23.8]}
30... Bd6 {[%clk 0:02:01.7]} 31. Re6 {[%clk 0:01:22.3]} 31... Rxe6 {[%clk
0:02:01.2]} 32. Rxe6 {[%clk 0:01:23]} 32... Rd8 {[%clk 0:02:00.1]} 33. Rf6+
{[%clk 0:01:22.6]} 33... Ke7 {[%clk 0:01:59.5]} 34. Rxf5 {[%clk 0:01:23.2]}
34... Rg8 {[%clk 0:01:56.6]} 35. Rh5 {[%clk 0:01:20.9]} 35... Rg4 {[%clk
0:01:55.2]} 36. Rxh7+ {[%clk 0:01:20.8]} 36... Ke8 {[%clk 0:01:54.6]} 37. Rxa7
{[%clk 0:01:09.8]} 37... Rxc4 {[%clk 0:01:54.4]} 38. Bf6 {[%clk 0:01:10]} 38...
Rc1+ {[%clk 0:01:53.5]} 39. Kg2 {[%clk 0:01:09.7]} 39... c4 {[%clk 0:01:53.7]}
40. h5 {[%clk 0:01:09.3]} 40... c3 {[%clk 0:01:50.5]} 41. h6 {[%clk 0:01:00.3]}
41... c2 {[%clk 0:01:50.5]} 42. h7 {[%clk 0:01:00.4]} 42... Rg1+ {[%clk
0:01:42]} 43. Kxg1 {[%clk 0:01:00.1]} 43... c1=Q+ {[%clk 0:01:41.2]} 44. Kg2
{[%clk 0:01:00.5]} 44... Bf8 {[%clk 0:01:23.1]} 45. h8=Q {[%clk 0:00:58.2]}
45... Qd1 {[%clk 0:01:21.5]} 46. Ra8+ {[%clk 0:00:53.1]} 46... Kd7 {[%clk
0:01:21.1]} 47. Rd8+ {[%clk 0:00:53.2]} 47... Kc7 {[%clk 0:01:20.8]} 48. Qxf8
{[%clk 0:00:51.2]} 48... Kb7 {[%clk 0:01:17.9]} 49. Qe7+ {[%clk 0:00:48.3]}
49... Ka6 {[%clk 0:01:17.8]} 50. Ra8+ {[%clk 0:00:42.9]} 50... Kb5 {[%clk
0:01:17.9]} 51. a4+ {[%clk 0:00:43.8]} 51... Kc4 {[%clk 0:01:17.5]} 52. Qe4+
{[%clk 0:00:44.4]} 52... Kb3 {[%clk 0:01:16.9]} 53. Qf3+ {[%clk 0:00:44.3]}
53... Qxf3+ {[%clk 0:01:13.1]} 54. Kxf3 {[%clk 0:00:45.2]} 1-0

[Event "Early-Titled-Tuesday-Blitz-May-07-2024"]
[Site "Chess.com"]
[Date "2024.05.07"]
[Round "3"]
[White "PhileKhoob"]
[Black "2Coaches1Profile"]
[Result "0-1"]
[WhiteElo "2302"]
[BlackElo "2569"]
[TimeControl "180+1"]
[EndTime "8:30:57 PDT"]
[Termination "2Coaches1Profile won by resignation"]

1. g3 {[%clk 0:02:58.4]} 1... h5 {[%clk 0:02:59.2]} 2. Nf3 {[%clk 0:02:57.6]}
2... e6 {[%clk 0:02:58.4]} 3. Bg2 {[%clk 0:02:57.6]} 3... g5 {[%clk 0:02:57.2]}
4. d3 {[%clk 0:02:57.6]} 4... g4 {[%clk 0:02:57.4]} 5. Ne5 {[%clk 0:02:57.4]}
5... Qf6 {[%clk 0:02:56.4]} 6. d4 {[%clk 0:02:55]} 6... Nc6 {[%clk 0:02:51.4]}
7. Bf4 {[%clk 0:02:51.6]} 7... Bd6 {[%clk 0:02:47.9]} 8. Nxc6 {[%clk 0:02:41.2]}
8... dxc6 {[%clk 0:02:48.8]} 9. Bxd6 {[%clk 0:02:37.4]} 9... cxd6 {[%clk
0:02:49.7]} 10. Nc3 {[%clk 0:02:36]} 10... h4 {[%clk 0:02:48.6]} 11. Qd2 {[%clk
0:02:33.4]} 11... d5 {[%clk 0:02:24.9]} 12. e4 {[%clk 0:02:29.5]} 12... h3
{[%clk 0:02:19.4]} 13. e5 {[%clk 0:02:27.8]} 13... hxg2 {[%clk 0:02:17.2]} 14.
Rg1 {[%clk 0:02:11.9]} 14... Qh6 {[%clk 0:02:08.1]} 15. Qe2 {[%clk 0:02:08.4]}
15... Qxh2 {[%clk 0:02:04.6]} 16. O-O-O {[%clk 0:02:08.1]} 16... Ne7 {[%clk
0:02:03.4]} 17. Qxg4 {[%clk 0:02:07.7]} 17... Bd7 {[%clk 0:02:02.4]} 18. Qf3
{[%clk 0:02:07.5]} 18... Nf5 {[%clk 0:01:51.5]} 19. Rxg2 {[%clk 0:02:07]} 19...
Qh5 {[%clk 0:01:46.7]} 20. Qxh5 {[%clk 0:01:37.8]} 20... Rxh5 {[%clk 0:01:47.6]}
21. g4 {[%clk 0:01:37.7]} 21... Rg5 {[%clk 0:01:47.2]} 22. Rh2 {[%clk
0:01:36.7]} 22... Ne7 {[%clk 0:01:43.3]} 23. Rg1 {[%clk 0:01:34.2]} 23... O-O-O
{[%clk 0:01:40.6]} 24. f4 {[%clk 0:01:34.2]} 24... Rg7 {[%clk 0:01:40]} 25. Ne2
{[%clk 0:01:33]} 25... Rdg8 {[%clk 0:01:39.8]} 26. Rhg2 {[%clk 0:01:32.4]} 26...
Nf5 {[%clk 0:01:35.6]} 27. g5 {[%clk 0:01:07.8]} 27... Rh8 {[%clk 0:01:34.6]}
28. c3 {[%clk 0:01:01.4]} 28... Rh3 {[%clk 0:01:31.2]} 29. Ng3 {[%clk
0:00:57.4]} 29... Nxg3 {[%clk 0:01:26.7]} 30. Rxg3 {[%clk 0:00:58.3]} 30... Rxg3
{[%clk 0:01:27.4]} 31. Rxg3 {[%clk 0:00:55]} 31... Rh7 {[%clk 0:01:27.9]} 32. g6
{[%clk 0:00:54.5]} 32... fxg6 {[%clk 0:01:28.1]} 33. Rxg6 {[%clk 0:00:55.4]}
33... Rh1+ {[%clk 0:01:27]} 34. Kc2 {[%clk 0:00:55.2]} 34... Rh2+ {[%clk
0:01:27.8]} 35. Kc1 {[%clk 0:00:54.1]} 35... Rf2 {[%clk 0:01:27.8]} 36. Rf6
{[%clk 0:00:54.6]} 36... b6 {[%clk 0:01:27.5]} 37. Rf8+ {[%clk 0:00:52.2]} 37...
Kc7 {[%clk 0:01:27.4]} 38. Rf7 {[%clk 0:00:53.1]} 38... c5 {[%clk 0:01:26]} 39.
a3 {[%clk 0:00:50.5]} 39... a5 {[%clk 0:01:20]} 40. Kb1 {[%clk 0:00:49]} 40...
a4 {[%clk 0:01:18]} 41. Ka2 {[%clk 0:00:47]} 41... Kd8 {[%clk 0:01:12.5]} 42.
Rf8+ {[%clk 0:00:41.4]} 42... Be8 {[%clk 0:01:12.7]} 43. Rf6 {[%clk 0:00:41.2]}
43... Ke7 {[%clk 0:01:01]} 44. Rh6 {[%clk 0:00:36]} 0-1

[Event "Early-Titled-Tuesday-Blitz-May-07-2024"]
[Site "Chess.com"]
[Date "2024.05.07"]
[Round "3"]
[White "NikFil2013"]
[Black "kritipatel"]
[Result "1-0"]
[WhiteElo "2395"]
[BlackElo "2168"]
[TimeControl "180+1"]
[EndTime "8:30:57 PDT"]
[Termination "NikFil2013 won on time"]

1. d4 {[%clk 0:03:00.9]} 1... d5 {[%clk 0:02:57.8]} 2. c4 {[%clk 0:03:00.9]}
2... e6 {[%clk 0:02:58.1]} 3. Nc3 {[%clk 0:03:01.4]} 3... Nf6 {[%clk 0:02:58.7]}
4. cxd5 {[%clk 0:03:02]} 4... exd5 {[%clk 0:02:58.8]} 5. Bg5 {[%clk 0:03:02.6]}
5... Be7 {[%clk 0:02:59.4]} 6. e3 {[%clk 0:03:03.2]} 6... O-O {[%clk 0:02:59.9]}
7. Bd3 {[%clk 0:03:03.8]} 7... Nbd7 {[%clk 0:03:00.1]} 8. Qc2 {[%clk 0:03:04.4]}
8... c6 {[%clk 0:03:00.3]} 9. Nf3 {[%clk 0:03:04.1]} 9... Re8 {[%clk 0:03:00.9]}
10. O-O {[%clk 0:03:04.2]} 10... Nf8 {[%clk 0:03:01.6]} 11. h3 {[%clk
0:03:02.7]} 11... g6 {[%clk 0:03:01.3]} 12. Ne5 {[%clk 0:02:58.4]} 12... Be6
{[%clk 0:02:56.9]} 13. Rab1 {[%clk 0:02:57.5]} 13... Rc8 {[%clk 0:02:55.3]} 14.
b4 {[%clk 0:02:57.2]} 14... b6 {[%clk 0:02:50.5]} 15. b5 {[%clk 0:02:51.2]}
15... c5 {[%clk 0:02:48.9]} 16. Nc6 {[%clk 0:02:51]} 16... Qc7 {[%clk
0:02:34.3]} 17. f4 {[%clk 0:02:22.7]} 17... Kg7 {[%clk 0:02:13.5]} 18. f5 {[%clk
0:02:19.7]} 18... gxf5 {[%clk 0:01:48.3]} 19. Bxf5 {[%clk 0:02:20.6]} 19... Bd6
{[%clk 0:01:42.6]} 20. Bxf6+ {[%clk 0:02:12.5]} 20... Kg8 {[%clk 0:01:11.1]} 21.
Bxe6 {[%clk 0:02:10.5]} 21... Rxe6 {[%clk 0:01:07.9]} 22. Nxd5 {[%clk
0:02:10.3]} 22... Qd7 {[%clk 0:00:50.1]} 23. Qf5 {[%clk 0:02:01.2]} 23... Ng6
{[%clk 0:00:35.8]} 24. h4 {[%clk 0:01:08.8]} 24... Bg3 {[%clk 0:00:18.6]} 25.
Nde7+ {[%clk 0:01:01.6]} 25... Nxe7 {[%clk 0:00:16]} 26. Nxe7+ {[%clk
0:01:01.8]} 26... Rxe7 {[%clk 0:00:14.8]} 27. Qg5+ {[%clk 0:00:59.4]} 1-0

[Event "Early-Titled-Tuesday-Blitz-May-07-2024"]
[Site "Chess.com"]
[Date "2024.05.07"]
[Round "3"]
[White "SRob2003"]
[Black "ATM622"]
[Result "0-1"]
[WhiteElo "2647"]
[BlackElo "2503"]
[TimeControl "180+1"]
[EndTime "8:31:09 PDT"]
[Termination "ATM622 won by resignation"]

1. e4 {[%clk 0:02:59]} 1... c6 {[%clk 0:02:59.9]} 2. Ne2 {[%clk 0:02:58.8]} 2...
d5 {[%clk 0:03:00.3]} 3. e5 {[%clk 0:02:59.2]} 3... Bf5 {[%clk 0:02:56.4]} 4.
Ng3 {[%clk 0:02:59.3]} 4... Bg6 {[%clk 0:02:56.5]} 5. h4 {[%clk 0:02:59.7]} 5...
h6 {[%clk 0:02:56.6]} 6. h5 {[%clk 0:03:00]} 6... Bh7 {[%clk 0:02:56.4]} 7. e6
{[%clk 0:03:00.9]} 7... fxe6 {[%clk 0:02:50.9]} 8. d4 {[%clk 0:03:01.1]} 8...
Nd7 {[%clk 0:02:48.9]} 9. Bd3 {[%clk 0:02:54.6]} 9... Bxd3 {[%clk 0:02:46.4]}
10. Qxd3 {[%clk 0:02:54.4]} 10... Nb6 {[%clk 0:02:45.1]} 11. Qg6+ {[%clk
0:02:54.1]} 11... Kd7 {[%clk 0:02:45.2]} 12. Nd2 {[%clk 0:02:54.1]} 12... Qe8
{[%clk 0:02:41.2]} 13. Nf3 {[%clk 0:02:51.4]} 13... Nf6 {[%clk 0:02:32.1]} 14.
Ne5+ {[%clk 0:02:48.3]} 14... Kc8 {[%clk 0:02:32.2]} 15. Qd3 {[%clk 0:02:42.5]}
15... Nbd7 {[%clk 0:02:14.1]} 16. Bf4 {[%clk 0:02:38.6]} 16... Nxe5 {[%clk
0:02:09.7]} 17. Bxe5 {[%clk 0:02:39.5]} 17... Rg8 {[%clk 0:02:06]} 18. O-O-O
{[%clk 0:02:36.2]} 18... g5 {[%clk 0:01:52.7]} 19. hxg6 {[%clk 0:02:35.6]} 19...
Qxg6 {[%clk 0:01:52.5]} 20. Qe2 {[%clk 0:02:31.9]} 20... h5 {[%clk 0:01:42.5]}
21. Bxf6 {[%clk 0:02:31]} 21... Qxf6 {[%clk 0:01:32.1]} 22. Rxh5 {[%clk
0:02:28.2]} 22... Bh6+ {[%clk 0:01:26]} 23. Kb1 {[%clk 0:02:27.9]} 23... Bf4
{[%clk 0:01:26.4]} 24. Nf1 {[%clk 0:01:59.4]} 24... Rxg2 {[%clk 0:01:21.3]} 25.
Qf3 {[%clk 0:01:59.5]} 25... Rg8 {[%clk 0:01:20.4]} 26. Qh3 {[%clk 0:01:36.3]}
26... Kc7 {[%clk 0:01:10.2]} 27. Re1 {[%clk 0:01:36]} 27... Rg6 {[%clk
0:01:09.8]} 28. c3 {[%clk 0:01:30.8]} 28... Bd6 {[%clk 0:01:08.6]} 29. Re2
{[%clk 0:01:21.6]} 29... Rg1 {[%clk 0:01:06.7]} 30. Kc2 {[%clk 0:00:47]} 30...
Rxf1 {[%clk 0:01:00.7]} 31. Rxe6 {[%clk 0:00:42.3]} 31... Qxf2+ {[%clk 0:00:56]}
32. Kb3 {[%clk 0:00:42.3]} 32... Rb1 {[%clk 0:00:54.6]} 33. Ka4 {[%clk
0:00:31.1]} 33... Qxb2 {[%clk 0:00:50]} 34. Rxe7+ {[%clk 0:00:30.3]} 34... Bxe7
{[%clk 0:00:45]} 35. Qg3+ {[%clk 0:00:30.2]} 35... Kb6 {[%clk 0:00:42.7]} 0-1

[Event "Early-Titled-Tuesday-Blitz-May-07-2024"]
[Site "Chess.com"]
[Date "2024.05.07"]
[Round "3"]
[White "banane_verte"]
[Black "sudtirolese06"]
[Result "0-1"]
[WhiteElo "2588"]
[BlackElo "2436"]
[TimeControl "180+1"]
[EndTime "8:31:09 PDT"]
[Termination "sudtirolese06 won by checkmate"]

1. d4 {[%clk 0:03:00.9]} 1... g6 {[%clk 0:03:00.9]} 2. c4 {[%clk 0:02:59.4]}
2... Bg7 {[%clk 0:03:01.3]} 3. g3 {[%clk 0:02:56.7]} 3... d6 {[%clk 0:03:01.4]}
4. Bg2 {[%clk 0:02:56.8]} 4... Nf6 {[%clk 0:03:01.3]} 5. Nc3 {[%clk 0:02:53.5]}
5... O-O {[%clk 0:03:01.4]} 6. Nf3 {[%clk 0:02:54.3]} 6... Nc6 {[%clk
0:03:01.3]} 7. O-O {[%clk 0:02:53.4]} 7... e5 {[%clk 0:03:01.9]} 8. dxe5 {[%clk
0:02:53.7]} 8... dxe5 {[%clk 0:03:01.9]} 9. Bg5 {[%clk 0:02:54.4]} 9... Be6
{[%clk 0:02:57.9]} 10. Qa4 {[%clk 0:02:54.2]} 10... Qc8 {[%clk 0:02:56.4]} 11.
Rfd1 {[%clk 0:02:41.6]} 11... Nd7 {[%clk 0:02:44]} 12. Nd5 {[%clk 0:02:35.7]}
12... e4 {[%clk 0:02:44.3]} 13. Nd4 {[%clk 0:02:06.7]} 13... Bxd5 {[%clk
0:02:40]} 14. cxd5 {[%clk 0:02:00]} 14... Nxd4 {[%clk 0:02:39.3]} 15. Rxd4
{[%clk 0:01:59.9]} 15... Nb6 {[%clk 0:02:26.1]} 16. Qd1 {[%clk 0:01:59.5]} 16...
Qf5 {[%clk 0:02:22.5]} 17. Be3 {[%clk 0:01:51.6]} 17... Bxd4 {[%clk 0:02:22.5]}
18. Qxd4 {[%clk 0:01:49.6]} 18... Qxd5 {[%clk 0:02:21.4]} 19. Qf6 {[%clk
0:01:39.2]} 19... Qe6 {[%clk 0:02:17.3]} 20. Qg5 {[%clk 0:01:23.7]} 20... Rad8
{[%clk 0:02:08.4]} 21. Qh6 {[%clk 0:01:17.6]} 21... Nc4 {[%clk 0:02:04.5]} 22.
Bf4 {[%clk 0:00:58.9]} 22... Rd7 {[%clk 0:01:59.3]} 23. b3 {[%clk 0:00:52.6]}
23... Nd6 {[%clk 0:01:52.6]} 24. Bh3 {[%clk 0:00:45.9]} 24... Nf5 {[%clk
0:01:48.1]} 25. Qg5 {[%clk 0:00:40.3]} 25... Rfd8 {[%clk 0:01:36]} 26. Bxc7
{[%clk 0:00:35.5]} 26... h6 {[%clk 0:01:08.4]} 27. Qf4 {[%clk 0:00:14.4]} 27...
Rd1+ {[%clk 0:01:08.4]} 28. Rxd1 {[%clk 0:00:13.8]} 28... Rxd1+ {[%clk
0:01:09.3]} 29. Kg2 {[%clk 0:00:14.6]} 29... Qc6 {[%clk 0:01:09.2]} 30. Be5
{[%clk 0:00:07.4]} 30... e3+ {[%clk 0:01:09.1]} 31. f3 {[%clk 0:00:07.9]} 31...
Qc1 {[%clk 0:01:09.5]} 32. Bxf5 {[%clk 0:00:05.1]} 32... Rh1 {[%clk 0:00:58]}
33. Kh3 {[%clk 0:00:01.6]} 33... Qf1+ {[%clk 0:00:56.5]} 34. Kg4 {[%clk
0:00:02]} 34... Rxh2 {[%clk 0:00:56.9]} 35. Bxg6 {[%clk 0:00:00.7]} 35... Qh3#
{[%clk 0:00:57.1]} 0-1

[Event "Early-Titled-Tuesday-Blitz-May-07-2024"]
[Site "Chess.com"]
[Date "2024.05.07"]
[Round "3"]
[White "LeoLV10"]
[Black "SpongeBob_03"]
[Result "1-0"]
[WhiteElo "2474"]
[BlackElo "2261"]
[TimeControl "180+1"]
[EndTime "8:31:10 PDT"]
[Termination "LeoLV10 won by checkmate"]

1. e4 {[%clk 0:02:57.2]} 1... c5 {[%clk 0:03:00.3]} 2. Nf3 {[%clk 0:02:55.9]}
2... e6 {[%clk 0:02:56.6]} 3. d4 {[%clk 0:02:55.8]} 3... cxd4 {[%clk 0:02:56.2]}
4. Nxd4 {[%clk 0:02:56.7]} 4... Nf6 {[%clk 0:02:55.6]} 5. Nc3 {[%clk 0:02:57.2]}
5... Nc6 {[%clk 0:02:55.6]} 6. Nxc6 {[%clk 0:02:55.6]} 6... bxc6 {[%clk
0:02:55.4]} 7. e5 {[%clk 0:02:56.2]} 7... Nd5 {[%clk 0:02:56]} 8. Ne4 {[%clk
0:02:56.8]} 8... Qc7 {[%clk 0:02:55.6]} 9. f4 {[%clk 0:02:56.6]} 9... Qb6 {[%clk
0:02:53.7]} 10. c4 {[%clk 0:02:45.9]} 10... Bb4+ {[%clk 0:02:31.9]} 11. Ke2
{[%clk 0:02:45.6]} 11... Ba6 {[%clk 0:02:31.5]} 12. Kf3 {[%clk 0:02:44.6]} 12...
f5 {[%clk 0:02:27.3]} 13. exf6 {[%clk 0:02:20.7]} 13... Nxf6 {[%clk 0:02:25.3]}
14. Nxf6+ {[%clk 0:02:09.9]} 14... gxf6 {[%clk 0:02:26.2]} 15. Be3 {[%clk
0:02:03.5]} 15... Bc5 {[%clk 0:02:03.8]} 16. Bxc5 {[%clk 0:02:01.9]} 16... Qxc5
{[%clk 0:02:04.7]} 17. Qd3 {[%clk 0:02:01.8]} 17... d5 {[%clk 0:02:03.2]} 18.
Re1 {[%clk 0:01:31.6]} 18... Kf7 {[%clk 0:01:17.7]} 19. Qe2 {[%clk 0:01:21.2]}
19... Rhe8 {[%clk 0:01:11.1]} 20. Qc2 {[%clk 0:01:17]} 20... Kg7 {[%clk
0:01:03.4]} 21. b4 {[%clk 0:01:16.5]} 21... Qxb4 {[%clk 0:00:57.3]} 22. cxd5
{[%clk 0:01:16.9]} 22... Bxf1 {[%clk 0:00:55.9]} 23. Rhxf1 {[%clk 0:01:14.8]}
23... cxd5 {[%clk 0:00:55.2]} 24. Qc7+ {[%clk 0:01:12.6]} 24... Re7 {[%clk
0:00:54.5]} 25. Qc6 {[%clk 0:01:11.6]} 25... Qa3+ {[%clk 0:00:48.3]} 26. Re3
{[%clk 0:01:09.4]} 26... Qxa2 {[%clk 0:00:46.2]} 27. Qxa8 {[%clk 0:01:08.1]}
27... d4 {[%clk 0:00:41.6]} 28. Rd3 {[%clk 0:01:04.8]} 28... e5 {[%clk
0:00:41.2]} 29. fxe5 {[%clk 0:00:52.1]} 29... fxe5 {[%clk 0:00:41.3]} 30. Kg3
{[%clk 0:00:49.6]} 30... Kh6 {[%clk 0:00:29.3]} 31. Rf6+ {[%clk 0:00:43.2]}
31... Kg5 {[%clk 0:00:22.2]} 32. Qf3 {[%clk 0:00:42.4]} 32... Qg8 {[%clk
0:00:14.1]} 33. Qf5# {[%clk 0:00:41.2]} 1-0